Cogmind - Beta 11.1 @@@ ROGUE MODE // 2022.05.06 @ 16:08:07 Player: Slackware1337 Result: Destroyed by S-27 Virus with Autogun Performance ------------- Evolutions (6) 3000 Regions Visited (16) 3200 Robots Destroyed (123) 615 Value Destroyed (4004) 4004 Prototype IDs (9) 180 Alien Tech Used (0) 0 Bonus (2485) 2485 TOTAL SCORE: 13484 Bonus ------- High Alert Combat Kills 113 Follower Combat Kills 1404 Entered Garrisons 200 Entered DSFs 500 Built Enhanced Grunts 300 Friendly Fire -32 Cogmind --------- Core Integrity 0/1150 Matter 260/300 Energy 99/100 System Corruption 15% Temperature Cool (0) Movement Core (50) Location -4/Factory Parts ------- > --- POWER (1) -------- (None) > --- PROPULSION (4) --- Gyrokinetic Inverter > --- UTILITY (10) ----- (None) > --- WEAPON (4) ------- (None) > --- INVENTORY (5) ---- Improved Treads Antigrav System Antigrav System Improved Heat Sink Improved Remote Datajack Peak State ------------ > --- POWER ------------ Quantum Reactor > --- PROPULSION ------- Centrium Heavy Treads Gyrokinetic Inverter Gyrokinetic Inverter > --- UTILITY ---------- Advanced Heat Sink Large Storage Unit Advanced Sensor Array Improved Signal Interpreter Armor Integrity Analyzer Centrium Medium Armor Plating Medium Regenerative Plating Advanced Hacking Suite Drone Bay > --- WEAPON ----------- Phase Cannon Tri-rail Accelerator > --- INVENTORY -------- Nuclear Core Light Antimatter Reactor Improved Carbon-fiber Leg Gyrokinetic Inverter Improved Reaction Control System Improved Light Armor Plating Centrium Medium Armor Plating High-powered Shock Rifle Gatling Laser Advanced Variable Charge Gun Gauss Rifle Advanced KE Penetrator Phasing Sabre [Rating: 110] Favorites ----------- Power Ion Engine Engine Ion Engine Power Core Micro Fission Core Reactor Quantum Reactor Propulsion Aluminum Leg Treads Centrium Heavy Treads Leg Aluminum Leg Wheel Wheel Hover Unit Gyrokinetic Inverter Utility Medium Storage Unit Device Advanced Heat Sink Storage Medium Storage Unit Processor Improved Signal Interpreter Hackware Advanced Hacking Suite Protection Centrium Medium Armor Plating Weapon Light Assault Rifle Energy Gun Small Laser Energy Cannon Phase Cannon Ballistic Gun Light Assault Rifle Ballistic Cannon Light Cannon Slashing Weapon Makeshift Axe Build | -11 -10 -10 -9 -8 -7 -7 -6 -6 -6 -6 -6 -5 -5 -5 -5 -4 ------- Run | Scr Mat Min Mat Mat Fac DSF Fac Ext Cet Arc Hub Fac Was Fac Gar Fac Slots Evolved 12 | . . . 2 2 2 . 2 . . . . 2 . . . 2 Power . | . . . . . . . . . . . . . . . . . Propulsion 2 | . . . . 1 . . . . . . . 1 . . . . Utility 8 | . . . 2 1 1 . 2 . . . . 1 . . . 1 Weapon 2 | . . . . . 1 . . . . . . . . . . 1 Parts Attached 141 | 6 10 1 12 16 2 4 6 29 7 2 2 6 . . 15 23 Power 15 | 1 1 1 1 2 . . . 2 1 . . . . . 1 5 Engine 6 | 1 1 1 1 2 . . . . . . . . . . . . Core 5 | . . . . . . . . 1 . . . . . . 1 3 Reactor 4 | . . . . . . . . 1 1 . . . . . . 2 Propulsion 34 | 2 2 . 3 6 . . 3 7 . 1 1 4 . . 2 3 Treads 4 | . . . . 1 . . . . . . 1 . . . 1 1 Leg 21 | 2 2 . 3 3 . . 3 7 . 1 . . . . . . Wheel 2 | . . . . 2 . . . . . . . . . . . . Hover 7 | . . . . . . . . . . . . 4 . . 1 2 Flight . | . . . . . . . . . . . . . . . . . Utility 48 | 1 4 . 4 4 1 3 3 10 3 1 1 1 . . 6 6 Device 22 | 1 2 . 2 1 . . 1 5 . 1 1 1 . . 4 3 Storage 5 | . 2 . . 1 . . . 1 . . . . . . . 1 Processor 6 | . . . . 1 1 . 2 1 . . . . . . . 1 Hackware 2 | . . . . . . . . 1 1 . . . . . . . Protection 13 | . . . 2 1 . 3 . 2 2 . . . . . 2 1 Artifact . | . . . . . . . . . . . . . . . . . Weapon 44 | 2 3 . 4 4 1 1 . 10 3 . . 1 . . 6 9 Energy Gun 17 | . 1 . 1 1 . . . 5 2 . . . . . 2 5 Energy Cannon 3 | . 1 . . . . . . 1 . . . . . . . 1 Ballistic Gun 12 | 2 . . 1 1 . . . 3 1 . . . . . 1 3 Ballistic Cannon 8 | . 1 . 1 2 1 . . 1 . . . 1 . . 1 . Launcher . | . . . . . . . . . . . . . . . . . Special Weapon . | . . . . . . . . . . . . . . . . . Impact Weapon . | . . . . . . . . . . . . . . . . . Slashing Weapon 4 | . . . 1 . . 1 . . . . . . . . 2 . Piercing Weapon . | . . . . . . . . . . . . . . . . . Special Melee Weapon . | . . . . . . . . . . . . . . . . . Unidentified Prototypes 9 | . . . . 1 . . . . 4 2 1 1 . . . . Parts Lost 75 | . 2 3 4 2 . 4 . 17 . 1 1 . . . 15 26 Power 7 | . . 1 . . . . . 1 . . . . . . . 5 Propulsion 11 | . . 2 1 1 . . . 2 . 1 . . . . 2 2 Utility 32 | . 1 . 1 1 . 3 . 7 . . 1 . . . 9 9 Weapon 25 | . 1 . 2 . . 1 . 7 . . . . . . 4 10 Highest Loss Streak 18 | . 2 2 3 1 . 2 . 10 . 1 1 . . . 14 18 To Critical Strikes 1 | . . . . . . . . . . 1 . . . . . . Average Slot Usage (%) 84 | . 93 70 78 89 100 88 93 93 100 94 90 83 94 94 76 47 Engine 6 | . 14 13 11 9 7 7 6 3 . . . . . . . . Reactor 1 | . . . . . . . . 2 6 6 6 5 5 5 3 2 Leg 15 | . 28 13 10 17 23 23 20 19 20 14 9 . . . . . Hover 1 | . . . . . . . . . . . . 6 23 23 17 . Device 11 | . 11 . 13 14 15 13 13 13 14 13 12 17 17 17 11 10 Storage 8 | . 11 14 11 9 7 7 6 6 6 6 6 5 5 5 5 5 Processor 8 | . . . . 9 15 10 20 22 15 13 13 11 11 11 7 2 Hackware 1 | . . . . . . . . . 3 6 6 5 5 5 3 . Protection 6 | . . . 10 9 7 7 13 5 11 13 13 11 11 11 8 3 Energy Gun 5 | . . 14 9 5 . . . 6 6 6 6 1 . . 2 7 Energy Cannon 2 | . 6 . . . . . . 1 6 6 6 5 5 5 2 . Ballistic Gun 4 | . 15 . 1 1 . . . 3 6 6 6 1 . . 1 4 Ballistic Cannon 4 | . 4 14 8 2 15 8 6 3 . . . 3 5 5 2 1 Slashing Weapon 1 | . . . 2 9 7 7 6 1 . . . . . . 1 1 Naked Turns . | . . . . . . . . . . . . . . . . . Heaviest Build 86 | 8 22 19 29 36 41 53 54 60 81 81 77 86 86 86 86 72 Greatest Support 80 | 10 20 20 20 45 45 45 54 60 56 66 80 80 44 44 80 80 Greatest Overweight (x) 28 | . 6 6 8 3 . 1 1 1 1 1 1 28 1 1 3 1 Average Overweight (x) . | . . 1 1 . . . . . 1 1 . 1 1 1 . . Largest Inventory Capacity 15 | 5 10 10 10 10 10 10 10 15 15 15 15 15 15 15 15 15 Average Capacity 11 | 5 9 10 10 10 10 10 10 10 15 15 15 15 15 15 15 14 Most Carried 15 | 5 10 10 10 10 9 10 10 10 15 15 15 15 15 15 15 14 Average Carried 9 | 2 5 8 8 9 7 9 7 7 13 14 14 12 15 15 13 9 Final Capacity 15 | 5 10 10 10 10 10 10 10 15 15 15 15 15 15 15 15 5 Final Carried 15 | 3 8 9 9 10 7 10 10 9 14 15 12 15 15 15 10 5 Class Distribution -------------------- 40% | Mutant 21% | Scavenger-Mutant 14% | Scavenger-Gunner 10% | Scavenger-Skirmisher 9% | Scavenger-Tank Dominant Class ---------------- Mutant | -10/Materials Mutant | -10/Mines Mutant | -9/Materials Mutant | -8/Materials Mutant | -7/Factory Mutant | -7/DSF Scavenger-Assassin | -6/Factory Scavenger-Gunner | -6/Extension Scavenger-Gunner | -6/Cetus Scavenger-Tank | -6/Archives Scavenger-Tank | -6/Hub_04(d) Scavenger-Skirmisher | -5/Factory Scavenger-Skirmisher | -5/Waste Scavenger-Skirmisher | -5/Factory Scavenger-Skirmisher | -5/Garrison Scavenger-Tank | -4/Factory Resources | -11 -10 -10 -9 -8 -7 -7 -6 -6 -6 -6 -6 -5 -5 -5 -5 -4 ----------- Run | Scr Mat Min Mat Mat Fac DSF Fac Ext Cet Arc Hub Fac Was Fac Gar Fac Matter Collected 2709 | 333 215 126 271 218 . 95 22 354 175 32 40 . . . 447 381 Remotely . | . . . . . . . . . . . . . . . . . Salvage Created 4566 | 319 497 132 631 636 . 221 22 599 63 39 168 . . . 520 719 Parts 263 | 27 41 11 26 40 . 10 1 27 4 2 12 . . . 21 41 Haulers Intercepted 2 | . 1 . . 1 . . . . . . . . . . . . Recyclers Shooed 3 | . 1 . 1 . . . . . . . . . . . . 1 Parts Field Recycled . | . . . . . . . . . . . . . . . . . Retrieved Matter . | . . . . . . . . . . . . . . . . . Parts Self-Destructed . | . . . . . . . . . . . . . . . . . Prevented . | . . . . . . . . . . . . . . . . . Kills | -11 -10 -10 -9 -8 -7 -7 -6 -6 -6 -6 -6 -5 -5 -5 -5 -4 ------- Run | Scr Mat Min Mat Mat Fac DSF Fac Ext Cet Arc Hub Fac Was Fac Gar Fac Combat Hostiles Destroyed 85 | . 15 8 10 14 . 4 . 9 1 . 3 . . . 15 6 Melee 19 | . . . 1 13 . 1 . 3 . . . . . . . 1 Guns 21 | . 6 . . . . . . 1 . . 2 . . . 7 5 Cannons 42 | . 9 8 7 1 . 3 . 5 . . 1 . . . 8 . AOE 2 | . . . 2 . . . . . . . . . . . . . Classes Destroyed 14 | 3 5 . 1 1 . 1 . 2 . 1 . . . . . . Worker 9 | 2 1 . 1 . . . 1 1 . . . . . . . 3 Builder 6 | . 3 . . 1 . . . . . . 1 . . . . 1 Tunneler 11 | 9 . . . 1 . . . . . . . . . . . 1 Hauler 2 | . 1 . . 1 . . . . . . . . . . . . Recycler 7 | 1 . . 4 . . . . . . . . . . . . 2 Operator 1 | . . . . . . . . . . 1 . . . . . . Watcher 2 | . 1 . 1 . . . . . . . . . . . . . Swarmer 29 | . 6 6 . 4 . 3 . . . . . . . . 10 . Grunt 31 | . 9 2 8 7 . . . 3 . . 2 . . . . . Sentry 11 | . . . 2 2 . . . 3 . . . . . . 3 1 Specialist 1 | . . . . . . 1 . . . . . . . . . . Hunter 4 | . . . . 1 . . . 1 . . . . . . . 2 Programmer 7 | . . . . . . . . 1 . . 1 . . . 2 3 Behemoth 1 | . . . . . . . . 1 . . . . . . . . Cetus Guard 1 | . . . . . . . . . 1 . . . . . . . Best Kill Streak 8 | 4 4 3 4 4 . 3 1 3 1 1 2 . . . 6 8 Combat Bots Only 6 | . 4 3 2 4 . 3 . 3 1 . 2 . . . 6 2 Max Kills in Single Turn 2 | 1 2 1 2 1 . 1 1 1 1 1 2 . . . 2 1 Gunslinging . | . . . . . . . . . . . . . . . . . Exploded 1 | . . . 1 . . . . . . . . . . . . . Melee 1 | . . . 1 1 . 1 . 1 . . . . . . . 1 Uniques/NPCs Destroyed . | . . . . . . . . . . . . . . . . . Combat | -11 -10 -10 -9 -8 -7 -7 -6 -6 -6 -6 -6 -5 -5 -5 -5 -4 -------- Run | Scr Mat Min Mat Mat Fac DSF Fac Ext Cet Arc Hub Fac Was Fac Gar Fac Damage Taken 12587 | . 601 332 777 565 . 413 . 2645 324 186 93 . . . 2812 3839 Core 3013 | . 132 106 125 86 . 63 . 344 73 . 29 . . . 904 1151 Absorbed by Shields 584 | . . . 77 217 . 123 . 145 22 . . . . . . . Reduced by Siege Mode 54 | . . . . . . . . . . . . . . . . 54 Redirected to Shielding 109 | . . . . . . 71 . 38 . . . . . . . . Regen/Repaired (Parts) 383 | . 24 . 106 . . . . . 90 26 19 . . . 118 . Core Remaining (%) 57 | 100 . 4 68 84 . 91 . . . . 47 . . . 9 . Volleys Fired 313 | 39 69 20 44 15 . 7 . 20 4 2 6 . 5 . 42 40 Largest 4 | 2 2 2 2 1 . 1 . 3 3 3 3 . 2 . 3 4 Hottest 240 | 40 95 75 75 56 . 44 . 182 193 200 200 . 145 . 201 240 Shots Fired 605 | 73 118 40 88 15 . 7 . 49 11 8 19 . 10 . 72 95 Gun 391 | 73 62 20 44 11 . . . 30 7 5 13 . . . 38 88 Cannon 214 | . 56 20 44 4 . 7 . 19 4 3 6 . 10 . 34 7 Launcher . | . . . . . . . . . . . . . . . . . Special . | . . . . . . . . . . . . . . . . . Kinetic 366 | 73 88 20 59 11 . 7 . 21 3 3 7 . 5 . 20 49 Thermal 194 | . 30 20 29 4 . . . 19 8 5 12 . 5 . 52 10 Explosive . | . . . . . . . . . . . . . . . . . Electromagnetic 45 | . . . . . . . . 9 . . . . . . . 36 Robot Hit Streak 16 | 14 9 4 16 6 . 1 . 4 6 3 4 . 4 . 8 14 Robot Miss Streak 9 | 2 5 9 4 4 . 6 . 7 2 2 5 . 2 . 8 6 Penetration Max 1 | . . . . . . . . 1 1 . 1 . . . 1 1 Secondary Targets 3 | . . . . . . . . . . . . . . . 2 1 Max Gunslinging Chain 1 | . . . . . . . . . . . . . . . 1 1 Shots Hit Robots 417 | 50 70 14 51 41 . 4 2 37 9 4 10 . 9 . 46 70 Core Hits 194 | 21 29 9 23 21 . 4 . 18 4 3 6 . 2 . 27 27 Critical Kills 5 | . . . . . . . . . 1 1 . . . . 1 2 Critical Parts Destroyed 5 | . . . . . . . . . . 1 2 . . . . 2 Critical Strikes 21 | . . . 2 3 . . . 4 1 2 2 . . . 2 5 Meltdown 1 | . . . . . . . . . 1 . . . . . . . Destroy 9 | . . . . . . . . . . 2 2 . . . 1 4 Blast 4 | . . . 2 . . . . 1 . . . . . . 1 . Corrupt 1 | . . . . . . . . . . . . . . . . 1 Sever 6 | . . . . 3 . . . 3 . . . . . . . . Melee Attacks 63 | . . . 1 39 . 6 2 10 . . . . . . 2 3 Impact . | . . . . . . . . . . . . . . . . . Slashing 63 | . . . 1 39 . 6 2 10 . . . . . . 2 3 Piercing . | . . . . . . . . . . . . . . . . . Sneak Attacks 8 | . . . . 3 . 1 2 1 . . . . . . . 1 Combat Hostiles 1 | . . . . 1 . . . . . . . . . . . . Follow-up Attacks . | . . . . . . . . . . . . . . . . . Damage Inflicted 11421 | 420 1278 240 1105 1397 . 249 212 1194 243 181 341 . 504 . 1673 2384 Guns 4035 | 420 302 46 163 109 . . . 347 154 113 276 . . . 427 1678 Cannons 3897 | . 604 194 543 94 . 67 . 283 89 62 65 . 504 . 1109 283 Explosions 933 | . 371 . 365 . . . . . . . . . . . . 197 Melee 2368 | . . . 34 1194 . 182 212 552 . . . . . . 34 160 Ramming 188 | . 1 . . . . . . 12 . 6 . . . . 103 66 Kinetic 5152 | 420 592 194 583 160 . 67 . 325 68 80 175 . 382 . 788 1318 Thermal 2458 | . 314 46 123 43 . . . 203 175 95 166 . 122 . 748 423 Explosive 558 | . 371 . 187 . . . . . . . . . . . . . Electromagnetic 697 | . . . 178 . . . . 102 . . . . . . . 417 Impact . | . . . . . . . . . . . . . . . . . Slashing 2368 | . . . 34 1194 . 182 212 552 . . . . . . 34 160 Piercing . | . . . . . . . . . . . . . . . . . Highest Corruption 35 | . . . 2 . . . . 19 19 19 20 . 11 11 35 15 Average Corruption 15 | . . . 2 . . . . 18 19 19 19 . 6 11 18 9 Corruption Purged . | . . . . . . . . . . . . . . . . . Corruption Blocked . | . . . . . . . . . . . . . . . . . Effects 113 | . . . 1 . . . . 22 25 13 9 . 6 . 22 15 Message Errors 27 | . . . . . . . . 8 4 1 3 . 2 . 5 4 Matter Fused 23 | . . . . . . . . 4 8 1 2 . . . 5 3 Heat Flow Errors 10 | . . . . . . . . 2 1 3 . . . . 3 1 Energy Discharges 13 | . . . . . . . . 3 3 1 1 . 2 . 2 1 Parts Rejected 4 | . . . 1 . . . . . . . . . . . 2 1 Data Loss (minor) 12 | . . . . . . . . 1 3 3 1 . 1 . 3 . Data Loss (major) 3 | . . . . . . . . . 2 . 1 . . . . . Misfires 6 | . . . . . . . . 1 . 2 1 . . . 1 1 Alerts 7 | . . . . . . . . 2 2 1 . . . . . 2 Misdirections 4 | . . . . . . . . . 1 1 . . 1 . . 1 Weapon Failures 4 | . . . . . . . . 1 1 . . . . . 1 1 Overload Shots . | . . . . . . . . . . . . . . . . . Overflow Damage 292 | . 58 . . 54 . . 62 . . . . . . . 30 88 Projectiles 54 | . 18 . . 9 . . . . . . . . . . 27 . Explosions 94 | . 40 . . . . . . . . . . . . . . 54 Melee 144 | . . . . 45 . . 62 . . . . . . . 3 34 Knockbacks 29 | . 6 . 10 2 . . . . . . . . . . 3 8 Impact 1 | . . . . . . . . . . . . . . . 1 . Kinetic 27 | . 6 . 9 2 . . . . . . . . . . 2 8 Secondary 1 | . . . 1 . . . . . . . . . . . . . Self-Inflicted Damage 212 | . 61 . 78 . . . . . . . . . . . 48 25 Shots 3 | . 1 . 2 . . . . . . . . . . . . . Rammed 26 | . . . . . . . . . . . . . . . 14 12 Targets Rammed 32 | . 2 . . . . . . 3 . 1 . . . . 14 12 Kicked 6 | . 2 . . . . . . 3 . 1 . . . . . . Crushed . | . . . . . . . . . . . . . . . . . Highest Temperature 982 | . 410 147 12 32 . . . 210 208 428 285 . 286 . 982 370 Average Temperature 160 | . 100 61 4 11 . . . 37 54 183 119 . 151 . 312 97 Received Heat Transfer 1577 | . 186 105 306 236 . 20 . 483 67 . 9 . . . 120 45 Effects 65 | . 3 . . . . . . . . 1 . . . . 60 1 Shutdowns 12 | . 1 . . . . . . . . . . . . . 10 1 Energy Bleed 6 | . . . . . . . . . . 1 . . . . 5 . Interference 6 | . . . . . . . . . . . . . . . 6 . Matter Decay 7 | . . . . . . . . . . . . . . . 7 . Short Circuit 6 | . 2 . . . . . . . . . . . . . 4 . Damage (minor) 7 | . . . . . . . . . . . . . . . 7 . Damage (major) 17 | . . . . . . . . . . . . . . . 17 . Damage (core) 4 | . . . . . . . . . . . . . . . 4 . Siege Activations 2 | . . . . . . . . . . . . . . . . 2 Total Turns 39 | . . . . . . . . . . . . . . . . 39 Longest Duration 36 | . . . . . . . . . . . . . . . . 36 Robots Corrupted . | . . . . . . . . . . . . . . . . . Combat Hostiles . | . . . . . . . . . . . . . . . . . Parts Fried . | . . . . . . . . . . . . . . . . . Impact Corruptions 1 | . . . . . . . . . . . . . . . 1 . Robots Melted 1 | . . . . . . . . . 1 . . . . . . . Combat Hostiles 1 | . . . . . . . . . 1 . . . . . . . Parts Melted 3 | . . . . . . . . 1 . . . . . . 2 . Heat Transferred 3667 | . 666 100 275 111 . . . 399 311 111 185 . 148 . 1039 322 Parts Sabotaged . | . . . . . . . . . . . . . . . . . Parts Stolen . | . . . . . . . . . . . . . . . . . Parts Stripped . | . . . . . . . . . . . . . . . . . Power Chain Reactions 1 | . . . . . . . . . . . . . . . . 1 Missiles Intercepted . | . . . . . . . . . . . . . . . . . Alert | -11 -10 -10 -9 -8 -7 -7 -6 -6 -6 -6 -6 -5 -5 -5 -5 -4 ------- Run | Scr Mat Min Mat Mat Fac DSF Fac Ext Cet Arc Hub Fac Was Fac Gar Fac Peak Influence 571 | 60 310 206 400 366 170 244 138 427 571 359 430 210 77 39 487 549 Initial 242 | . 39 76 . 114 165 119 128 67 160 228 125 207 73 39 27 242 Average 188 | 28 122 64 136 230 165 171 132 218 325 327 281 209 65 39 291 309 Maximum Alert Level 2 | . 1 1 2 1 . 1 . 2 2 1 2 1 . . 2 2 Low Security (%) 55 | 100 82 96 72 32 100 75 100 42 32 . 39 . 100 100 37 . Level 1 37 | . 17 3 20 67 . 24 . 51 34 100 21 100 . . 22 94 Level 2 7 | . . . 6 . . . . 5 32 . 39 . . . 39 5 Level 3 . | . . . . . . . . . . . . . . . . . Level 4 . | . . . . . . . . . . . . . . . . . Level 5 . | . . . . . . . . . . . . . . . . . High Security . | . . . . . . . . . . . . . . . . . Max Security . | . . . . . . . . . . . . . . . . . Squads Dispatched 18 | . 4 . 2 2 . 1 . 3 1 . 3 1 . . . 1 Investigation 8 | . 2 . . 1 . . . 3 1 . 1 . . . . . Extermination 2 | . . . . . . . . . . . . 1 . . . 1 Reinforcement 8 | . 2 . 2 1 . 1 . . . . 2 . . . . . Assault . | . . . . . . . . . . . . . . . . . Garrison . | . . . . . . . . . . . . . . . . . Intercept . | . . . . . . . . . . . . . . . . . Searches Triggered . | . . . . . . . . . . . . . . . . . Construction Impeded . | . . . . . . . . . . . . . . . . . Haulers Reinforced . | . . . . . . . . . . . . . . . . . Active Scanning Responses . | . . . . . . . . . . . . . . . . . Cargo Convoy Interrupts . | . . . . . . . . . . . . . . . . . Stealth | -11 -10 -10 -9 -8 -7 -7 -6 -6 -6 -6 -6 -5 -5 -5 -5 -4 --------- Run | Scr Mat Min Mat Mat Fac DSF Fac Ext Cet Arc Hub Fac Was Fac Gar Fac Distress Signals 9 | . 1 . . 2 . . . 1 3 . 1 . . . . 1 Communications Jammed . | . . . . . . . . . . . . . . . . . Distress Signals . | . . . . . . . . . . . . . . . . . Times Spotted 193 | . 32 8 18 25 . 6 . 29 16 9 8 . 6 . 18 18 Peak Tracking Total 8 | . 6 3 3 7 . 3 . 6 5 2 5 1 6 . 8 6 Tactical Retreats 22 | . . . 4 2 . 3 . 5 . . 1 . . . 4 3 Traps | -11 -10 -10 -9 -8 -7 -7 -6 -6 -6 -6 -6 -5 -5 -5 -5 -4 ------- Run | Scr Mat Min Mat Mat Fac DSF Fac Ext Cet Arc Hub Fac Was Fac Gar Fac Traps Triggered 10 | . . . 1 . . 2 . 2 . . . 1 . . 2 2 Indirectly . | . . . . . . . . . . . . . . . . . Trap Hack Attempts . | . . . . . . . . . . . . . . . . . Triggered . | . . . . . . . . . . . . . . . . . Disarmed . | . . . . . . . . . . . . . . . . . Reprogrammed . | . . . . . . . . . . . . . . . . . Reused . | . . . . . . . . . . . . . . . . . Traps Extracted . | . . . . . . . . . . . . . . . . . Installed . | . . . . . . . . . . . . . . . . . Triggered . | . . . . . . . . . . . . . . . . . Machines | -11 -10 -10 -9 -8 -7 -7 -6 -6 -6 -6 -6 -5 -5 -5 -5 -4 ---------- Run | Scr Mat Min Mat Mat Fac DSF Fac Ext Cet Arc Hub Fac Was Fac Gar Fac Machines Disabled 20 | . 2 . 5 . . 2 . . 2 2 2 . . . 1 4 Max in Single Turn 4 | . 1 . 2 . . 1 . . . . 1 . . . 1 4 Garrison Relay 1 | . . . . . . . . . . . . . . . 1 . Energy Cycler 1 | . . . . . . . . 1 . . . . . . . . Machines Sabotaged . | . . . . . . . . . . . . . . . . . Garrisons Compromised . | . . . . . . . . . . . . . . . . . Overloaded Fab Kills . | . . . . . . . . . . . . . . . . . Hacking | -11 -10 -10 -9 -8 -7 -7 -6 -6 -6 -6 -6 -5 -5 -5 -5 -4 --------- Run | Scr Mat Min Mat Mat Fac DSF Fac Ext Cet Arc Hub Fac Was Fac Gar Fac Machines Accessed 44 | . 6 . 4 3 2 . 1 15 3 1 4 2 . 1 . 2 Terminals 33 | . 4 . 3 2 1 . 1 13 3 . 4 1 . . . 1 Fabricators 2 | . . . . . 1 . . . . . . 1 . . . . Repair Stations 2 | . 1 . 1 . . . . . . . . . . . . . Recycling Units 3 | . 1 . . . . . . 2 . . . . . . . . Scanalyzers 1 | . . . . 1 . . . . . . . . . . . . Garrison Access 2 | . . . . . . . . . . . . . . 1 . 1 Total Hacks 103 | . 21 . 7 13 2 . 1 34 10 1 8 2 . 1 . 3 Successful 61 | . 17 . 4 12 1 . 1 14 2 1 6 1 . 1 . 1 Failed 42 | . 4 . 3 1 1 . . 20 8 . 2 1 . . . 2 Catastrophic 7 | . . . . . . . . 3 2 . 1 1 . . . . Database Lockouts . | . . . . . . . . . . . . . . . . . Manual 31 | . 7 . 5 3 1 . . 7 1 . 5 2 . . . . Terminals 81 | . 15 . 5 7 1 . 1 32 10 . 8 1 . . . 1 Fabricators 2 | . . . . . 1 . . . . . . 1 . . . . Repair Stations 6 | . 4 . 2 . . . . . . . . . . . . . Recycling Units 4 | . 2 . . . . . . 2 . . . . . . . . Scanalyzers 6 | . . . . 6 . . . . . . . . . . . . Garrison Access 3 | . . . . . . . . . . . . . . 1 . 2 Terminal Hacks 32 | . 8 . 1 3 1 . 1 10 2 1 3 1 . . . 1 Record 3 | . . . . . . . . . 2 1 . . . . . . Open Door 4 | . . . . . . . . 4 . . . . . . . . Open DSF 4 | . . . . . 1 . 1 . . . . 1 . . . 1 Branch Access Points 1 | . . . . 1 . . . . . . . . . . . . Alert Level 2 | . 1 . . . . . . 1 . . . . . . . . Locate Traps 2 | . 2 . . . . . . . . . . . . . . . Investigation Status 1 | . 1 . . . . . . . . . . . . . . . Extermination Status 1 | . . . . . . . . 1 . . . . . . . . Zone Layout 14 | . 4 . 1 2 . . . 4 . . 3 . . . . . Fabricator Hacks . | . . . . . . . . . . . . . . . . . Repair Station Hacks 6 | . 4 . 2 . . . . . . . . . . . . . Scan Component 3 | . 2 . 1 . . . . . . . . . . . . . Repair 3 | . 2 . 1 . . . . . . . . . . . . . Recycling Unit Hacks 3 | . 2 . . . . . . 1 . . . . . . . . Report Inventory 2 | . 1 . . . . . . 1 . . . . . . . . Retrieve Components 1 | . 1 . . . . . . . . . . . . . . . Scanalyzer 6 | . . . . 6 . . . . . . . . . . . . Insert Component 3 | . . . . 3 . . . . . . . . . . . . Analyze 3 | . . . . 3 . . . . . . . . . . . . Garrison Access Hacks 1 | . . . . . . . . . . . . . . 1 . . Unlock Access 1 | . . . . . . . . . . . . . . 1 . . Unauthorized Hacks 13 | . 3 . 1 3 . . . 3 . . 3 . . . . . Terminals 13 | . 3 . 1 3 . . . 3 . . 3 . . . . . Track 1 | . . . . 1 . . . . . . . . . . . . Botnet 10 | . 3 . . 2 . . . 3 . . 2 . . . . . Detonate 2 | . . . 1 . . . . . . . 1 . . . . . Fabricators . | . . . . . . . . . . . . . . . . . Repair Stations . | . . . . . . . . . . . . . . . . . Recycling Units . | . . . . . . . . . . . . . . . . . Scanalyzers . | . . . . . . . . . . . . . . . . . Garrison Access . | . . . . . . . . . . . . . . . . . Data Cores Recovered . | . . . . . . . . . . . . . . . . . Used . | . . . . . . . . . . . . . . . . . Hacking Detections 31 | . 4 . 3 3 1 . 1 12 3 . 1 2 . . . 1 Full Trace Events 7 | . 2 . . 1 . . . 2 1 . 1 . . . . . Feedback Events . | . . . . . . . . . . . . . . . . . Feedback Blocked . | . . . . . . . . . . . . . . . . . Robot Schematics Acquired . | . . . . . . . . . . . . . . . . . Robots Built . | . . . . . . . . . . . . . . . . . Authchips . | . . . . . . . . . . . . . . . . . Time . | . . . . . . . . . . . . . . . . . Total Robot Build Rating . | . . . . . . . . . . . . . . . . . Part Schematics Acquired 3 | . . . . 3 . . . . . . . . . . . . Parts Built . | . . . . . . . . . . . . . . . . . Authchips . | . . . . . . . . . . . . . . . . . Time . | . . . . . . . . . . . . . . . . . Total Part Build Rating . | . . . . . . . . . . . . . . . . . Parts Repaired 3 | . 2 . 1 . . . . . . . . . . . . . Time 65 | . 52 . 13 . . . . . . . . . . . . . Parts Recycled . | . . . . . . . . . . . . . . . . . Recycled Matter . | . . . . . . . . . . . . . . . . . Retrieved Matter . | . . . . . . . . . . . . . . . . . Retrieved Components 9 | . 9 . . . . . . . . . . . . . . . Parts Scanalyzed 3 | . . . . 3 . . . . . . . . . . . . Part Schematics Acquired 3 | . . . . 3 . . . . . . . . . . . . Parts Damaged 2 | . . . . 2 . . . . . . . . . . . . Bothacking | -11 -10 -10 -9 -8 -7 -7 -6 -6 -6 -6 -6 -5 -5 -5 -5 -4 ------------ Run | Scr Mat Min Mat Mat Fac DSF Fac Ext Cet Arc Hub Fac Was Fac Gar Fac Used RIF Installer . | . . . . . . . . . . . . . . . . . Robots Hacked . | . . . . . . . . . . . . . . . . . Non-combat . | . . . . . . . . . . . . . . . . . Combat . | . . . . . . . . . . . . . . . . . Robot Hacks Applied . | . . . . . . . . . . . . . . . . . Relay Couplers Released 4 | . . . . . . . . . . . . . . . 4 . Machine Destruction 4 | . . . . . . . . . . . . . . . 4 . Fabnet Peak Effective % . | . . . . . . . . . . . . . . . . . Robots Rewired 7 | . . . . . . . . 7 . . . . . . . . Allies Hacked . | . . . . . . . . . . . . . . . . . Hacks Repelled . | . . . . . . . . . . . . . . . . . Allies | -11 -10 -10 -9 -8 -7 -7 -6 -6 -6 -6 -6 -5 -5 -5 -5 -4 -------- Run | Scr Mat Min Mat Mat Fac DSF Fac Ext Cet Arc Hub Fac Was Fac Gar Fac Total Allies 16 | . . . . . . . . 10 5 . . . 1 . . . Largest Group 6 | . . . . . . . . 5 6 6 3 . 1 . . . Highest-Rated Group 496 | . . . . . . . . 272 496 496 288 . 31 . . . Highest-Rated Ally 159 | . . . . . . . . 159 159 96 96 . 31 . . . Total Orders 7 | . . . . . . . . 2 3 1 . 1 . . . . EXPLORE 7 | . . . . . . . . 2 3 1 . 1 . . . . Ally Attacks 246 | . . . . . . . . 73 97 43 28 . 5 . . . Total Damage 7434 | . . . . . . . . 1741 2548 1698 1363 . 84 . . . Kills 50 | . . . . . . . . 20 18 4 8 . . . . . Allies Corrupted . | . . . . . . . . . . . . . . . . . Allies Melted 1 | . . . . . . . . . . . 1 . . . . . Intel | -11 -10 -10 -9 -8 -7 -7 -6 -6 -6 -6 -6 -5 -5 -5 -5 -4 ------- Run | Scr Mat Min Mat Mat Fac DSF Fac Ext Cet Arc Hub Fac Was Fac Gar Fac Robot Analysis Total . | . . . . . . . . . . . . . . . . . Derelict Logs Recovered 2 | . . 2 . . . . . . . . . . . . . . Drone Launches 7 | . . . . . . . . 2 3 1 . 1 . . . . Drone Recoveries 4 | . . . . . . . . . 2 1 . 1 . . . . Exploration | -11 -10 -10 -9 -8 -7 -7 -6 -6 -6 -6 -6 -5 -5 -5 -5 -4 ------------- Run | Scr Mat Min Mat Mat Fac DSF Fac Ext Cet Arc Hub Fac Was Fac Gar Fac Turns Passed 8328 | 302 1300 842 962 765 42 186 181 1268 527 271 160 275 129 19 528 571 Spaces Moved 4222 | 166 731 392 267 367 33 102 100 808 236 134 77 128 117 20 272 272 Core 106 | 12 1 27 6 . . . . . . . . 1 . . . 59 Treads 365 | . . . . . . . . . . . 25 60 . . 76 204 Legs 3331 | 154 730 365 261 356 33 102 100 808 236 134 52 . . . . . Wheels 11 | . . . . 11 . . . . . . . . . . . . Hover 409 | . . . . . . . . . . . . 67 117 20 196 9 Flight . | . . . . . . . . . . . . . . . . . Fastest Speed 50 | 50 120 120 190 95 120 120 120 120 190 190 160 98 98 98 98 50 Average Speed 149 | 114 130 180 253 159 120 128 165 122 190 190 180 175 98 98 115 133 Slowest Speed 1450 | 120 350 350 450 330 120 190 190 190 190 190 190 1450 98 98 190 160 Overloaded Moves . | . . . . . . . . . . . . . . . . . Propulsion Burnouts . | . . . . . . . . . . . . . . . . . Robots Hopped . | . . . . . . . . . . . . . . . . . Cave-ins Triggered 2 | . . . . . . . . 2 . . . . . . . . Exploration Rate (%) 41 | 6 71 80 27 35 2 75 4 91 75 90 13 5 88 1 39 7 Regions Visited 16 Branch Regions 5 Pre-discovered Areas 1 | . . 1 . . . . . . . . . . . . . . Known Exits Taken 8 | . . . 1 . 1 . 1 1 1 1 1 . . 1 . . Unknown Exits Taken 4 | 1 1 1 . 1 . . . . . . . . . . . . Scrap Searched 1 | . . 1 . . . . . . . . . . . . . . Spaces Dug . | . . . . . . . . . . . . . . . . . Terrain Destroyed 144 | . 20 . 40 . . . . 8 1 1 10 . 2 . 2 60 Melee . | . . . . . . . . . . . . . . . . . Projectile 37 | . . . . . . . . 8 1 1 10 . 2 . 2 13 AOE 107 | . 20 . 40 . . . . . . . . . . . . 47 Terrain Rammed . | . . . . . . . . . . . . . . . . . Walls Destroyed . | . . . . . . . . . . . . . . . . . Machines Disabled . | . . . . . . . . . . . . . . . . . Actions | -11 -10 -10 -9 -8 -7 -7 -6 -6 -6 -6 -6 -5 -5 -5 -5 -4 --------- Run | Scr Mat Min Mat Mat Fac DSF Fac Ext Cet Arc Hub Fac Was Fac Gar Fac Total 5639 | 219 974 491 468 500 36 141 110 1028 305 145 86 182 121 19 418 396 Wait 571 | . 140 73 131 18 1 4 . 70 42 4 . 34 . . 27 27 Move 4207 | 165 730 391 266 366 32 101 99 807 235 133 76 128 116 19 271 272 Hop . | . . . . . . . . . . . . . . . . . Pick Up 157 | 9 16 4 12 26 . 7 3 28 11 2 . 8 . . 13 18 Fast Attach . | . . . . . . . . . . . . . . . . . Attach 100 | 6 6 1 10 7 2 4 3 18 . . 2 6 . . 13 22 Detach 3 | . . . . . . . . . . . . 3 . . . . Swap 42 | . 4 . 2 9 . . 3 11 7 2 . . . . 3 1 Drop 65 | . 7 2 2 20 1 2 . 11 6 1 2 3 . . 7 1 Fire 313 | 39 69 20 44 15 . 7 . 20 4 2 6 . 5 . 42 40 Melee 63 | . . . 1 39 . 6 2 10 . . . . . . 2 3 Ram 23 | . . . . . . . . . . . . . . . 14 9 Kick 6 | . 2 . . . . . . 3 . 1 . . . . . . Crush 3 | . . . . . . . . . . . . . . . . 3 Escape Stasis 36 | . . . . . . 10 . . . . . . . . 26 . Rewire 50 | . . . . . . . . 50 . . . . . . . . Trap . | . . . . . . . . . . . . . . . . . Miscellaneous . | . . . . . . . . . . . . . . . . . Route ------- -11/Scrapyard -10/Materials (discovered 2 exits: *Mat / [*Min]) -10/Mines (discovered 2 exits: *Mat x2) -9/Materials (discovered 2 exits: *Mat x2) -8/Materials -7/Factory -7/DSF -6/Factory -6/Extension (discovered 3 exits: *Fac x2 / *Cet) -6/Cetus (discovered 2 exits: *Fac / *Arc) -6/Archives (discovered 3 exits: *Fac / *Hub x2) -6/Hub_04(d) -5/Factory -5/Waste -5/Factory -5/Garrison -4/Factory History --------- Turn | Location | Event 20 | -11/Scrapyard | Discovered new exit (range 15) 303 | -11/Scrapyard | Entered Materials 308 | -10/Materials | Build established: Mutant 412 | -10/Materials | Repaired Seismic Detector 719 | -10/Materials | Repaired Seismic Detector 752 | -10/Materials | Discovered new exit (range 15) 959 | -10/Materials | Discovered new exit (range 11) 1208 | -10/Materials | Build established: Scavenger-Mutant 1482 | -10/Materials | Core integrity fell below 50% 1603 | -10/Materials | Entered Mines 1683 | -10/Mines | Learned 8 Materials zone layouts 1705 | -10/Mines | A weapon hastily lodged in a ceiling crevice suddenly fell to the ground 1754 | -10/Mines | Build established: Mutant 1817 | -10/Mines | Learned location of Storage (-7) 2021 | -10/Mines | Discovered new exit (range 5) 2264 | -10/Mines | Core integrity fell below 20% 2310 | -10/Mines | Discovered new exit (range 4) 2445 | -10/Mines | Entered Materials 2445 | -9/Materials | Evolved 2 slots: Utility x2 2446 | -9/Materials | Identified exit to Materials 2766 | -9/Materials | Repaired Lgt. Cannon 3215 | -9/Materials | Lost 3 parts (1n1u1w) 3313 | -9/Materials | Discovered exit to Materials (range 15) 3407 | -9/Materials | Entered another Materials area 3407 | -8/Materials | Evolved 2 slots: Propulsion x1, Utility x1 3480 | -8/Materials | Build established: Scavenger-Mutant 4153 | -8/Materials | Discovered new exit (range 4) 4155 | -8/Materials | Build established: Mutant 4172 | -8/Materials | Entered Factory 4172 | -7/Factory | Evolved 2 slots: Utility x1, Weapon x1 4212 | -7/Factory | Identified exit to DSF 4214 | -7/Factory | Entered DSF 4246 | -7/DSF | Additional patrols routed to DSF 4303 | -7/DSF | Discovered new exit (range 17) 4400 | -7/DSF | Entered Factory 4400 | -6/Factory | Evolved 2 slots: Utility x2 4568 | -6/Factory | Discovered new exit (range 12) 4580 | -6/Factory | Identified exit to Extension 4581 | -6/Factory | Entered Extension 4679 | -6/Extension | Spotted B-75 Beast 4804 | -6/Extension | Lost 4 parts (3u1w) 4864 | -6/Extension | Rescued a captive Derelict 4864 | -6/Extension | Rescued a captive Derelict 5159 | -6/Extension | Build established: Scavenger-Gunner 5190 | -6/Extension | Energy Cycler disabled 5190 | -6/Extension | Rescued a captive Derelict 5191 | -6/Extension | Rescued a captive Derelict 5192 | -6/Extension | Rescued a captive Derelict 5194 | -6/Extension | Rescued a captive Derelict 5207 | -6/Extension | Rescued A7 5267 | -6/Extension | Destroyed B-75 Beast 5270 | -6/Extension | Spotted B-75 Beast 5313 | -6/Extension | Crushed by falling debris 5313 | -6/Extension | System corruption reached 10% 5343 | -6/Extension | Crushed by falling debris 5374 | -6/Extension | Lost 10 parts (1p1n3u5w) 5375 | -6/Extension | Discovered new exit (range 14) 5789 | -6/Extension | Discovered new exit (range 10) 5790 | -6/Extension | Discovered new exit (range 6) 5810 | -6/Extension | Identified exit to Cetus 5836 | -6/Extension | Identified exit to Factory 5849 | -6/Extension | Entered Cetus 5849 | -6/Cetus | Accompanied by 5 allies (A7) 5854 | -6/Cetus | Acquired a Cetus Manufacturing Module code from A7 5876 | -6/Cetus | Spotted Cetus Guard 5876 | -6/Cetus | Spotted Cetus Guard 5878 | -6/Cetus | Spotted Cetus Guard 5880 | -6/Cetus | Spotted Cetus Guard 5886 | -6/Cetus | Allies destroyed Cetus Guard 5901 | -6/Cetus | Destroyed Cetus Guard 5902 | -6/Cetus | Allies destroyed Cetus Guard 5910 | -6/Cetus | Discovered exit to Factory (range 35) 5955 | -6/Cetus | Discovered new exit (range 59) 5959 | -6/Cetus | Extracted ID and sensor layout for unrecognized location from A7's data core 5963 | -6/Cetus | Found Prototype Protection 5964 | -6/Cetus | Identified Med. Regenerative Plating 5965 | -6/Cetus | Spotted Cetus Guard 5965 | -6/Cetus | Spotted Cetus Guard 5969 | -6/Cetus | Spotted Cetus Guard 5969 | -6/Cetus | Spotted Cetus Guard 6092 | -6/Cetus | Started Cetus Manufacturing Module 6117 | -6/Cetus | Manufactured an Enhanced Grunt 6142 | -6/Cetus | Manufactured an Enhanced Grunt 6167 | -6/Cetus | Manufactured an Enhanced Grunt 6192 | -6/Cetus | Manufactured an Enhanced Grunt 6217 | -6/Cetus | Manufactured an Enhanced Grunt 6218 | -6/Cetus | Identified exit to Archives 6328 | -6/Cetus | Cetus Manufacturing Module disabled 6376 | -6/Cetus | Entered Archives 6376 | -6/Archives | Accompanied by 6 allies 6417 | -6/Archives | Found Prototype Device 6418 | -6/Archives | Identified Exp. Thermal Shield 6458 | -6/Archives | Unable to access archive contents 6462 | -6/Archives | Discovered new exit (range 16) 6477 | -6/Archives | Unable to access archive contents 6484 | -6/Archives | Discovered new exit (range 16) 6496 | -6/Archives | Unable to access archive contents 6519 | -6/Archives | Unable to access archive contents 6526 | -6/Archives | Discovered exit to Factory (range 14) 6625 | -6/Archives | Identified exit to Hub_04(d) 6647 | -6/Archives | Entered Hub_04(d) 6647 | -6/Hub_04(d) | Accompanied by 3 allies 6724 | -6/Hub_04(d) | Build established: Scavenger-Tank 6731 | -6/Hub_04(d) | Core integrity fell below 50% 6774 | -6/Hub_04(d) | Discovered exit to Factory (range 14) 6807 | -6/Hub_04(d) | Entered Factory 6807 | -5/Factory | Evolved 2 slots: Propulsion x1, Utility x1 6835 | -5/Factory | Identified exit to DSF 7076 | -5/Factory | Build established: Scavenger-Skirmisher 7082 | -5/Factory | Sucked down chute 7082 | -5/Factory | Entered Waste 7083 | -5/Waste | Met a frightened Derelict 7097 | -5/Waste | EMP discharged 7120 | -5/Waste | Spotted C-40 Crusher 7151 | -5/Waste | Spotted C-40 Crusher 7156 | -5/Waste | Spotted C-40 Crusher 7156 | -5/Waste | Spotted C-40 Crusher 7157 | -5/Waste | Spotted C-40 Crusher 7161 | -5/Waste | Spotted C-40 Crusher 7197 | -5/Waste | EMP discharged 7197 | -5/Waste | System corruption reached 10% 7197 | -5/Waste | Discovered new exit (range 13) 7210 | -5/Waste | Identified exit to Factory 7211 | -5/Waste | Entered Factory 7229 | -5/Factory | Identified exit to Garrison 7230 | -5/Factory | Entered Garrison 7303 | -5/Garrison | Spotted B-75 Beast 7306 | -5/Garrison | Triggered checkpoint 7429 | -5/Garrison | Garrison Relay disabled 7519 | -5/Garrison | Triggered checkpoint 7605 | -5/Garrison | Core integrity fell below 50% 7609 | -5/Garrison | Core integrity fell below 20% 7612 | -5/Garrison | System corruption reached 30% 7649 | -5/Garrison | Lost 14 parts (2n8u4w) 7728 | -5/Garrison | Triggered checkpoint 7740 | -5/Garrison | Discovered new exit (range 12) 7758 | -5/Garrison | Entered Factory 7758 | -4/Factory | Evolved 2 slots: Utility x1, Weapon x1 8131 | -4/Factory | System corruption reached 10% 8154 | -4/Factory | Lost 4 parts (1p2u1w) 8280 | -4/Factory | Core integrity fell below 50% 8312 | -4/Factory | Core integrity fell below 20% 8329 | -4/Factory | Destroyed by S-27 Virus with Autogun Last Messages --------------- 08298_ Penetrated by Slug. 08298_ Slug penetrates Wall. 08298_ K-01 Serf collects debris. 08298_ Slammed into H-77 Assassin. 08298_ U-05 Engineer builds a Wall. 08301_ K-01 Serf collects debris. 08302_ Penetrated by Slug. 08303_ U-05 Engineer forms the Earth. 08303_ U-05 Engineer builds a Wall. 08304_ System corrupted: Matter fused (-5). 08304_ R-10 Processor collects Lgt. Ion Engine. 08304_ U-05 Engineer builds a Wall. 08304_ K-01 Serf collects debris. 08308_ Slug penetrates Door. 08308_ Penetrated by Slug. 08310_ U-05 Engineer builds a Door. 08315_ Slug penetrates Wall. 08315_ Penetrated by Slug. 08318_ K-01 Serf collects debris. 08326_ Imp. Target Analyzer destroyed. Map ----- +----------------------------------------------------+ | ?????????????????????????????????????????????????? | | ?????????????????????????????????????????????????? | | ?????????????????????????????????????????????????? | | ?????????????????????????????????????????????????? | | ?????????????????????????????????????????????????? | | ?????????????????????????????????????????????????? | | ?????????????????????????????????????????????????? | | ?????????????????????????????????????????????????? | | ?????????????????????????????????????????????????? | | ?????????????????????????????????????????????????? | | ?????????????????????? ???????????????????????? | | ????????????????????# ###+###########????????? | | ????????????????????# # #????????? | | ????????????????????# # !!! #????????? | | ????????????????????# #?""" !! #????????? | | #####???????????????#A #?""" !! =#????????? | | #???????????????+ # """ #????????? | | #???????????????# # #????????? | | #???????????????# #??#########+#########?? | | #???????????????# #?????????# #?? | | #???????????????# #?????????# ! #?? | | #???????????????# #?????????# =% #?? | | #???????????????# #??????? ?# #?? | | #???????????????# +?????! ?# #?? | | #?????########### #?????? ?# #?? | | #?????# # @#????? ?# #?? | | #?????# # #??? ## ### | | #?????# # #?? "# " # | | ##"##?????# # #????###""# " # | | #=#??????# # #??????# # "# | | # ##?????# # #??????# | | #" "#?????# # #??????# | | ## ##?????# # #####??#### # | | ## ############+##### ##T #############/##"# | | # | | % % # | | + | | % ^^ % # | | + | | % ################ s ##########/##### # | | #??????????????# ss #????# # # | | #??????????????# #????# # # | | #??????????????# #????# # ### | | #??????????????# #????# = # #?? | | +??????????????# #????# #% #?? | | #??????????????# #????# # #?? | | #??????????????# #????# # #?? | | #??????????????# #????# # #?? | | ?????????????? ! #????########### #?? | | ?????????????? #??????????????# #?? | +----------------------------------------------------+ Best States ------------- Heat Dissipation 78 Energy Generation 25 Energy Capacity 350 Matter Stores 300 Matter Capacity 350 Sight Range 18 Robot Scan Range 16 Terrain Scan Density 10 ECM Strength 1 Armor Coverage 450 Resistance: KI 30 Propulsion Shielding 66 Phase Shifting 10 Evasion (%) 60 Targeting Accuracy 8 Target Analysis 6 Armor Integrity Analysis 30 Recoil Reduction 2 Offensive Hacking 14 Item Schematics ----------------- Imp. Signal Interpreter | -8/Materials | Scanalyzed Imp. Ion Engine | -8/Materials | Scanalyzed Lgt. Nuclear Core | -8/Materials | Scanalyzed Robot Schematics ------------------ None Fabricated ------------ Nothing Alien Tech Used ----------------- None Achievements -------------- A New Friend Party Time Prison Break Project G-00 Respectable Loadout The More The Merrier Unlikely Earthworm Challenges ------------ None Game ------ Seed ParticleWaveShearcannon Manual? 0 Play Time 01:50:57 Cumulative 12.9 hours Start 2022.05.05 @ 20:23:00 End 2022.05.06 @ 16:08:07 Sessions 3 Manual Loads 0 Difficulty Rogue Special Mode None Game No. 17 Rogue 17 Adventurer 0 Explorer 0 Win Type - Total 0 Types 0/0/0/0/0/0/0/0/0 Lore% 15 Gallery% 18 Achievement% 15 Wizard Run 0 Options --------- ASCII 0 Keyboard 0 Movement Numpad Keybinds 0 Fullscreen 1 Font 20/SmallcapsGlow Map View 66x50 Tactical HUD 1 Map Filters NONE Filters NONE Steam 1 RUN: 8d5526d4-27d5-48ed-94de-3df350be6035